fUSD/lending_fUSD_20250623
["ID","MTS","AMOUNT","RATE_DAILY","PERIOD"]
[367109635,1750662667383,-490.0,0.00027671,3]
[367109636,1750662667393,-490.0,0.00027671,3]
[367109637,1750662667403,-490.0,0.00027671,3]
[367109638,1750662667413,-490.0,0.00027671,3]
[367109639,1750662667423,-728.45,0.00027671,3]
[367109640,1750662667432,-490.0,0.00027671,3]
[367109641,1750662667442,-806.96,0.00027671,3]
[367109642,1750662667451,-1797.81,0.00027671,3]
[367109643,1750662667461,-1831.64,0.00027671,3]
[367109644,1750662667470,-1432.05,0.00027671,3]
[367109645,1750662667480,-490.0,0.00027671,3]
[367109646,1750662667490,-919.07,0.00027671,3]
[367109647,1750662667499,-14900.62,0.00027671,3]
[367109648,1750662667514,-1833.67,0.00027671,3]
[367109649,1750662667524,-490.0,0.00027671,3]
[367109650,1750662667534,-2078.39,0.00027671,3]
[367109651,1750662667543,-510.45,0.00027671,3]
[367109652,1750662667555,-490.0,0.00027671,3]
[367109653,1750662667564,-490.0,0.00027671,3]
[367109654,1750662667575,-4833.93,0.00027671,3]
[367109655,1750662667586,-490.0,0.00027671,3]
[367109656,1750662667595,-1601.31,0.00027671,3]
[367109657,1750662667604,-759.06,0.00027671,3]
[367109658,1750662667614,-490.0,0.00027671,3]
[367109659,1750662667623,-873.41,0.00027671,3]
[367109660,1750662667633,-791.68,0.00027671,3]
[367109661,1750662667642,-4669.42,0.00027671,3]
[367109662,1750662667652,-490.0,0.00027671,3]
[367109663,1750662667662,-1693.53,0.00027671,3]
[367109664,1750662667671,-990.18,0.00027671,3]
[367109665,1750662667681,-1034.99,0.00027671,3]
[367109666,1750662667690,-1620.6,0.00027671,3]
[367109667,1750662667699,-490.0,0.00027671,3]
[367109668,1750662667709,-490.0,0.00027671,3]
[367109669,1750662667718,-1653.45,0.00027671,3]
[367109670,1750662667727,-3451.15,0.00027671,3]
[367109671,1750662667736,-1389.7,0.00027671,3]
[367109672,1750662667745,-490.0,0.00027671,3]
[367109673,1750662667755,-226.09127831,0.00027671,3]
[367109674,1750662667765,-490.0,0.00027671,3]
[367109675,1750662667775,-490.0,0.00027671,3]
[367109676,1750662667785,-153.91105767,0.00027671,3]
[367109677,1750662667794,-490.0,0.00027671,3]
[367109678,1750662667804,-1000.0,0.00027671,3]
[367109679,1750662667814,-510.91823709,0.00027671,3]
[367109680,1750662667826,-490.0,0.00027671,3]
[367109681,1750662667835,-490.0,0.00027671,3]
[367109682,1750662667844,-2416.24,0.00027671,3]
[367109683,1750662667854,-993.54,0.00027671,3]
[367109684,1750662667863,-490.0,0.00027671,3]
[367109685,1750662667872,-490.0,0.00027671,3]
[367109686,1750662667882,-490.0,0.00027671,3]
[367109687,1750662667891,-566.41,0.00027671,3]
[367109688,1750662667901,-11090.94,0.00027671,3]
[367109689,1750662667910,-298.59,0.00027671,3]
[367109690,1750662667920,-1221.42,0.00027671,3]
[367109691,1750662667929,-1799.28,0.00027671,3]
[367109692,1750662667939,-300.50342844,0.00027671,3]
[367109693,1750662667948,-2070.18,0.00027671,3]
[367109694,1750662667958,-1701.67,0.00027671,3]
[367109695,1750662667967,-1378.47,0.00027671,3]
[367109696,1750662667977,-1087.15,0.00027671,3]
[367109697,1750662667986,-490.0,0.00027671,3]
[367109698,1750662667995,-1736.17,0.00027671,3]
[367109699,1750662668005,-1351.61,0.00027671,3]
[367109700,1750662668014,-490.0,0.00027671,3]
[367109701,1750662668023,-1816.97,0.00027671,3]
[367109702,1750662668032,-490.0,0.00027671,3]
[367109703,1750662668041,-709.09,0.00027671,3]
[367109704,1750662668051,-490.0,0.00027671,3]
[367109705,1750662668060,-1834.95,0.00027671,3]
[367109706,1750662668071,-1672.0,0.00027671,3]
[367109707,1750662668080,-1571.12,0.00027671,3]
[367109708,1750662668089,-490.0,0.00027671,3]
[367109709,1750662668098,-4884.01,0.00027671,3]
[367109710,1750662668108,-490.0,0.00027671,3]
[367109711,1750662668117,-490.0,0.00027671,3]
[367109712,1750662668127,-1729.07,0.00027671,3]
[367109713,1750662668136,-8073.75,0.00027671,3]
[367109714,1750662668146,-1652.26,0.00027671,3]
[367109715,1750662668155,-490.0,0.00027671,3]
[367109716,1750662668164,-718.8,0.00027671,3]
[367109717,1750662668174,-490.0,0.00027671,3]
[367109718,1750662668184,-867.32,0.00027671,3]
[367109719,1750662668193,-490.0,0.00027671,3]
[367109720,1750662668202,-30050.84,0.00027671,3]
[367109721,1750662668212,-490.0,0.00027671,3]
[367109722,1750662668221,-1482.76,0.00027671,3]
[367109723,1750662668231,-1513.2,0.00027671,3]
[367109724,1750662668240,-1869.9,0.00027671,3]
[367109725,1750662668249,-490.0,0.00027671,3]
[367109726,1750662668259,-490.0,0.00027671,3]
[367109727,1750662668269,-490.0,0.00027671,3]
[367109728,1750662668278,-1291.21,0.00027671,3]
[367109729,1750662668287,-825.47,0.00027671,3]
[367109730,1750662668297,-490.0,0.00027671,3]
[367109731,1750662668306,-490.0,0.00027671,3]
[367109732,1750662668318,-529.57,0.00027671,3]
[367109733,1750662668327,-1000.93,0.00027671,3]
[367109734,1750662668336,-1013.98,0.00027671,2]
[367109735,1750662668346,-490.0,0.00027671,3]
[367109736,1750662668356,-749.71,0.00027671,3]
[367109737,1750662668366,-2626.45,0.00027671,3]
[367109738,1750662668376,-1301.95,0.00027671,3]
[367109739,1750662668385,-1553.91,0.00027671,3]
[367109740,1750662668395,-914.97,0.00027671,3]
[367109741,1750662668404,-733.17,0.00027671,3]
[367109742,1750662668414,-5331.91,0.00027671,3]
[367109743,1750662668423,-6188.74,0.00027671,3]
[367109744,1750662668433,-2204.74,0.00027671,3]
[367109745,1750662668442,-742.07,0.00027671,3]
[367109746,1750662668452,-490.0,0.00027671,3]
[367109747,1750662668461,-866.05,0.00027671,3]
[367109748,1750662668471,-1201.89,0.00027671,3]
[367109749,1750662668480,-5637.09,0.00027671,3]
[367109750,1750662668490,-716.87,0.00027671,3]
[367109751,1750662668499,-490.0,0.00027671,3]
[367109752,1750662668510,-490.0,0.00027671,3]
[367109753,1750662668521,-490.0,0.00027671,3]
[367109754,1750662668530,-2465.19,0.00027671,3]
[367109755,1750662668539,-1651.87,0.00027671,3]
[367109756,1750662668548,-1607.85,0.00027671,3]
[367109757,1750662668558,-490.0,0.00027671,3]
[367109758,1750662668568,-1906.99,0.00027671,3]
[367109759,1750662668577,-572.05,0.00027671,3]
[367109760,1750662668587,-1536.26,0.00027671,3]
[367109761,1750662668597,-1920.56,0.00027671,3]
[367109762,1750662668607,-2965.58,0.00027671,3]
[367109763,1750662668616,-1131.73,0.00027671,3]
[367109764,1750662668625,-764.72,0.00027671,3]
[367109765,1750662668635,-3001.5,0.00027671,3]
[367109766,1750662668645,-594.04,0.00027671,3]
[367109767,1750662668655,-490.0,0.00027671,3]
[367109768,1750662668665,-490.0,0.00027671,3]
[367109769,1750662668675,-490.0,0.00027671,3]
[367109770,1750662668684,-1385.46,0.00027671,3]
[367109771,1750662668694,-1205.8,0.00027671,3]
[367109772,1750662668704,-490.0,0.00027671,3]
[367109773,1750662668714,-1261.87,0.00027671,3]
[367109774,1750662668724,-759.47,0.00027671,3]
[367109775,1750662668735,-545.01610335,0.00027671,2]
[367109776,1750662668745,-954.78,0.00027671,3]
[367109777,1750662668755,-490.0,0.00027671,3]
[367109778,1750662668764,-1511.09276146,0.00027671,2]
[367109779,1750662668773,-501.82110259,0.00027673,5]
[367109780,1750662668783,-1258.03765544,0.00027693,17]
[367109781,1750662668792,-162.380719,0.00027719,2]
[367109782,1750662668802,-719.04747942,0.00027719,2]
[367109783,1750662668812,-223.0315306,0.00027719,2]
[367109784,1750662668822,-200.0,0.0002772,2]
[367109785,1750662668831,-28053.13211093,0.00027845,2]
[367109786,1750662668844,-44058.2402197,0.00027845,2]
[367109787,1750662668853,-262.5970682,0.00027921,5]
[367109788,1750662668862,-998.40554987,0.00027921,5]
[367109789,1750662668872,-1043.04037009,0.00027921,5]
[367109790,1750662668881,-1000.0,0.00027921,5]
[367109791,1750662668890,-773.03350807,0.00027935,2]
[367109792,1750662668900,-640.74394,0.0002794,2]
[367109793,1750662668909,-5455.753665,0.00027945,3]
[367109794,1750662668918,-151.476984,0.00027945,3]
[367109795,1750662668928,-490.0,0.00027945,3]
[367109796,1750662668939,-160.97294427,0.00027945,3]
[367109797,1750662668948,-490.0,0.00027945,3]
[367109798,1750662668958,-490.0,0.00027945,3]
[367109799,1750662668967,-490.0,0.00027945,3]
[367109800,1750662668977,-490.0,0.00027945,3]
[367109801,1750662668988,-906.91,0.00027945,3]
[367109802,1750662668999,-490.0,0.00027945,3]
[367109803,1750662669008,-490.0,0.00027945,3]
[367109804,1750662669017,-490.0,0.00027945,3]
[367109805,1750662669026,-733.39,0.00027945,3]
[367109806,1750662669036,-490.0,0.00027945,3]
[367109807,1750662669047,-490.0,0.00027945,3]
[367109808,1750662669056,-490.0,0.00027945,3]
[367109809,1750662669066,-490.0,0.00027945,3]
[367109810,1750662669076,-252.921479,0.00027945,3]
[367109811,1750662669085,-490.0,0.00027945,3]
[367109812,1750662669096,-490.0,0.00027945,3]
[367109813,1750662669106,-958.78,0.00027945,3]
[367109814,1750662669115,-972.11,0.00027945,3]
[367109815,1750662669125,-490.0,0.00027945,3]
[367109816,1750662669135,-2591.829598,0.00027945,3]
[367109817,1750662669145,-615.11,0.00027945,3]
[367109818,1750662669155,-804.23,0.00027945,3]
[367109819,1750662669164,-490.0,0.00027945,3]
[367109820,1750662669173,-490.0,0.00027945,3]
[367109821,1750662669183,-490.0,0.00027945,3]
[367109822,1750662669193,-490.0,0.00027945,3]
[367109823,1750662669203,-490.0,0.00027945,3]
[367109824,1750662669212,-490.0,0.00027945,3]
[367109825,1750662669222,-490.0,0.00027945,3]
[367109826,1750662669308,-490.0,0.00027945,3]
[367109827,1750662669318,-490.0,0.00027945,3]
[367109828,1750662669327,-490.0,0.00027945,3]
[367109829,1750662669337,-490.0,0.00027945,3]
[367109830,1750662669346,-490.0,0.00027945,3]
[367109831,1750662669355,-490.0,0.00027945,3]
[367109832,1750662669365,-1075.31,0.00027945,3]
[367109833,1750662669378,-490.0,0.00027945,3]
[367109834,1750662669387,-490.0,0.00027945,3]
[367109835,1750662669396,-811.41,0.00027945,3]
[367109836,1750662669407,-490.0,0.00027945,3]
[367109837,1750662669417,-663.45,0.00027945,3]
[367109838,1750662669427,-695.49,0.00027945,3]
[367109839,1750662669436,-490.0,0.00027945,3]
[367109840,1750662669445,-490.0,0.00027945,3]
[367109841,1750662669454,-490.0,0.00027945,3]
[367109842,1750662669468,-977.66,0.00027945,3]
[367109843,1750662669478,-490.0,0.00027945,3]
[367109844,1750662669487,-833.21,0.00027945,3]
[367109845,1750662669497,-591.25,0.00027945,3]
[367109846,1750662669508,-297.13431526,0.00027945,3]
[367109847,1750662669524,-490.0,0.00027945,3]
[367109848,1750662669536,-490.0,0.00027945,3]
[367109849,1750662669547,-232.34131014,0.00027945,3]
[367109850,1750662669559,-690.16,0.00027945,3]
[367109851,1750662669571,-490.0,0.00027945,3]
[367109852,1750662669580,-1109.36,0.00027945,3]
[367109853,1750662669592,-490.0,0.00027945,3]
[367109854,1750662669603,-490.0,0.00027945,3]
[367109855,1750662669613,-526.92,0.00027945,3]
[367109856,1750662669622,-490.0,0.00027945,3]
[367109857,1750662669632,-490.0,0.00027945,3]
[367109858,1750662669641,-490.0,0.00027945,3]
[367109859,1750662669651,-202.66171043,0.00027945,3]
[367109860,1750662669660,-490.0,0.00027945,3]
[367109861,1750662669670,-519.11,0.00027945,3]
[367109862,1750662669680,-490.0,0.00027945,3]
[367109863,1750662669688,-490.0,0.00027945,3]
[367109864,1750662669698,-970.12,0.00027945,3]
[367109865,1750662669707,-490.0,0.00027945,3]
[367109866,1750662669717,-1478.36,0.00027945,3]
[367109867,1750662669727,-490.0,0.00027945,3]
[367109868,1750662669736,-490.0,0.00027945,3]
[367109869,1750662669746,-490.0,0.00027945,3]
[367109870,1750662669755,-490.0,0.00027945,3]
[367109871,1750662669765,-490.0,0.00027945,3]
[367109872,1750662669775,-1376.6,0.00027945,3]
[367109873,1750662669795,-490.0,0.00027945,3]
[367109874,1750662669805,-889.62,0.00027945,3]
[367109875,1750662669815,-490.0,0.00027945,3]
[367109876,1750662669826,-490.0,0.00027945,3]
[367109877,1750662669835,-1155.19,0.00027945,3]
[367109878,1750662669845,-517.36693272,0.00027945,3]
[367109879,1750662669855,-490.0,0.00027945,3]
[367109880,1750662669865,-490.0,0.00027945,3]
[367109881,1750662669874,-495.01,0.00027945,3]
[367109882,1750662669884,-490.0,0.00027945,3]
[367109883,1750662669894,-668.52,0.00027945,3]
[367109884,1750662669903,-586.16,0.00027945,3]
[367109885,1750662669913,-490.0,0.00027945,3]
[367109886,1750662669922,-698.01,0.00027945,3]
[367109887,1750662669932,-490.0,0.00027945,3]
[367109888,1750662669942,-490.0,0.00027945,3]
[367109889,1750662669952,-490.0,0.00027945,3]
[367109890,1750662669961,-490.0,0.00027945,3]
[367109891,1750662669971,-490.0,0.00027945,3]
[367109892,1750662669981,-644.39,0.00027945,3]
[367109893,1750662669990,-617.7,0.00027945,3]
[367109894,1750662669999,-490.0,0.00027945,3]
[367109895,1750662670009,-490.0,0.00027945,3]
[367109896,1750662670018,-427.54138622,0.00027945,3]
[367109897,1750662670028,-826.8,0.00027945,3]
[367109898,1750662670039,-490.0,0.00027945,3]
[367109899,1750662670049,-490.0,0.00027945,3]
[367109900,1750662670058,-490.0,0.00027945,3]
[367109901,1750662670068,-490.0,0.00027945,3]
[367109902,1750662670078,-588.92870351,0.00027945,3]
[367109903,1750662670087,-490.0,0.00027945,3]
[367109904,1750662670097,-490.0,0.00027945,3]
[367109905,1750662670107,-490.0,0.00027945,3]
[367109906,1750662670118,-490.0,0.00027945,3]
[367109907,1750662670128,-339.29582957,0.00027945,3]
[367109908,1750662670138,-626.46,0.00027945,3]
[367109909,1750662670147,-490.0,0.00027945,3]
[367109910,1750662670157,-490.0,0.00027945,3]
[367109911,1750662670166,-490.0,0.00027945,3]
[367109912,1750662670176,-194.47185487,0.00027945,3]
[367109913,1750662670185,-490.0,0.00027945,3]
[367109914,1750662670195,-490.0,0.00027945,3]
[367109915,1750662670204,-490.0,0.00027945,3]
[367109916,1750662670213,-841.55,0.00027945,3]
[367109917,1750662670222,-490.0,0.00027945,3]
[367109918,1750662670233,-625.27,0.00027945,3]
[367109919,1750662670242,-490.0,0.00027945,3]
[367109920,1750662670251,-1584.78,0.00027945,3]
[367109921,1750662670261,-490.0,0.00027945,3]
[367109922,1750662670270,-490.0,0.00027945,3]
[367109923,1750662670279,-490.0,0.00027945,3]
[367109924,1750662670288,-490.0,0.00027945,3]
[367109925,1750662670298,-490.0,0.00027945,3]
[367109926,1750662670307,-1089.25,0.00027945,3]
[367109927,1750662670316,-914.26,0.00027945,3]
[367109928,1750662670326,-777.39,0.00027945,3]
[367109929,1750662670335,-667.3,0.00027945,3]
[367109930,1750662670344,-563.6,0.00027945,3]
[367109931,1750662670354,-1172.55,0.00027945,3]
[367109932,1750662670363,-490.0,0.00027945,3]
[367109933,1750662670372,-490.0,0.00027945,3]
[367109934,1750662670381,-857.69,0.00027945,3]
[367109935,1750662670391,-601.26,0.00027945,3]
[367109936,1750662670400,-490.0,0.00027945,3]
[367109937,1750662670409,-498.65207558,0.00027945,3]
[367109938,1750662670419,-1486.14,0.00027945,3]
[367109939,1750662670428,-654.18,0.00027945,3]
[367109940,1750662670438,-641.56,0.00027945,3]
[367109941,1750662670447,-2328.1,0.00027945,3]
[367109942,1750662670457,-490.0,0.00027945,3]
[367109943,1750662670467,-1714.75,0.00027945,3]
[367109944,1750662670476,-490.0,0.00027945,3]
[367109945,1750662670486,-834.55,0.00027945,3]
[367109946,1750662670495,-490.0,0.00027945,3]
[367109947,1750662670505,-2984.61,0.00027945,3]
[367109948,1750662670517,-579.07,0.00027945,3]
[367109949,1750662670527,-1666.5,0.00027945,3]
[367109950,1750662670536,-490.0,0.00027945,2]
[367109951,1750662670546,-312.96024292,0.00027945,3]
[367109952,1750662670556,-774.87,0.00027945,3]
[367109953,1750662670566,-490.0,0.00027945,3]
[367109954,1750662670576,-490.0,0.00027945,3]
[367109955,1750662670585,-198.016965,0.00027945,3]
[367109956,1750662670595,-506.27647043,0.00027945,3]
[367109957,1750662670604,-490.0,0.00027945,3]
[367109958,1750662670615,-523.64,0.00027945,3]
[367109959,1750662670624,-1685.1,0.00027945,3]
[367109960,1750662670633,-490.0,0.00027945,3]
[367109961,1750662670643,-685.83,0.00027945,3]
[367109962,1750662670652,-845.32,0.00027945,3]
[367109963,1750662670661,-490.0,0.00027945,3]
[367109964,1750662670671,-490.0,0.00027945,3]
[367109965,1750662670681,-490.0,0.00027945,3]
[367109966,1750662670691,-1003.013708,0.00027945,3]
[367109967,1750662670701,-490.0,0.00027945,3]
[367109968,1750662670711,-490.0,0.00027945,3]
[367109969,1750662670720,-407.03,0.00027945,3]
[367109970,1750662670730,-490.0,0.00027945,3]
[367109971,1750662670739,-490.0,0.00027945,3]
[367109972,1750662670748,-620.28,0.00027945,3]
[367109973,1750662670757,-490.0,0.00027945,3]
[367109974,1750662670766,-692.18,0.00027945,3]
[367109975,1750662670775,-354.48868587,0.00027945,3]
[367109976,1750662670784,-490.0,0.00027945,3]
[367109977,1750662670793,-583.42,0.00027945,3]
[367109978,1750662670803,-1382.11,0.00027945,3]
[367109979,1750662670812,-490.0,0.00027945,3]
[367109980,1750662670822,-957.53,0.00027945,3]
[367109981,1750662670831,-1520.85,0.00027945,3]
[367109982,1750662670841,-852.4,0.00027945,3]
[367109983,1750662670850,-490.0,0.00027945,3]
[367109984,1750662670859,-490.0,0.00027945,3]
[367109985,1750662670869,-1514.64,0.00027945,3]
[367109986,1750662670878,-490.0,0.00027945,3]
[367109987,1750662670887,-490.0,0.00027945,3]
[367109988,1750662670896,-316.76812827,0.00027945,3]
[367109989,1750662670905,-490.0,0.00027945,3]
[367109990,1750662670914,-564.98,0.00027945,3]
[367109991,1750662670923,-1413.76,0.00027945,3]
[367109992,1750662670933,-368.16934785,0.00027945,3]
[367109993,1750662670942,-490.0,0.00027945,3]
[367109994,1750662670952,-621.88,0.00027945,3]
[367109995,1750662670961,-490.0,0.00027945,3]
[367109996,1750662670970,-643.76,0.00027945,3]
[367109997,1750662670980,-1486.85,0.00027945,3]
[367109998,1750662670989,-490.0,0.00027945,3]
[367109999,1750662670998,-605.57,0.00027945,3]
[367110000,1750662671007,-407.66316328,0.00027945,3]
[367110001,1750662671016,-765.6,0.00027945,3]
[367110002,1750662671026,-490.0,0.00027945,3]
[367110003,1750662671035,-490.0,0.00027945,3]
[367110004,1750662671045,-635.87,0.00027945,3]
[367110005,1750662671054,-490.0,0.00027945,3]
[367110006,1750662671063,-521.1,0.00027945,3]
[367110007,1750662671074,-748.29,0.00027945,3]
[367110008,1750662671083,-559.87,0.00027945,3]
[367110009,1750662671093,-490.0,0.00027945,3]
[367110010,1750662671102,-702.32,0.00027945,3]
[367110011,1750662671112,-490.0,0.00027945,3]
[367110012,1750662671121,-490.0,0.00027945,3]
[367110013,1750662671131,-490.0,0.00027945,3]
[367110014,1750662671141,-1437.96,0.00027945,3]
[367110015,1750662671152,-933.29,0.00027945,3]
[367110016,1750662671162,-623.74,0.00027945,3]
[367110017,1750662671172,-1229.23,0.00027945,3]
[367110018,1750662671181,-490.0,0.00027945,3]
[367110019,1750662671191,-490.0,0.00027945,3]
[367110020,1750662671201,-490.0,0.00027945,3]
[367110021,1750662671211,-1240.62,0.00027945,3]
[367110022,1750662671220,-1044.91,0.00027945,3]
[367110023,1750662671230,-490.92,0.00027945,3]
[367110024,1750662671240,-636.16,0.00027945,3]
[367110025,1750662671249,-439.70618142,0.00027945,3]
[367110026,1750662671259,-583.46,0.00027945,3]
[367110027,1750662671268,-1648.05,0.00027945,3]
[367110028,1750662671277,-490.0,0.00027945,3]
[367110029,1750662671287,-745.48,0.00027945,3]
[367110030,1750662671297,-490.0,0.00027945,3]
[367110031,1750662671306,-1819.02,0.00027945,3]
[367110032,1750662671316,-490.0,0.00027945,3]
[367110033,1750662671327,-490.0,0.00027945,3]
[367110034,1750662671336,-1025.74,0.00027945,3]
[367110035,1750662671346,-490.0,0.00027945,3]
[367110036,1750662671355,-507.64,0.00027945,3]
[367110037,1750662671364,-1801.52,0.00027945,3]
[367110038,1750662671374,-1776.13,0.00027945,3]
[367110039,1750662671383,-1449.74,0.00027945,3]
[367110040,1750662671392,-803.35,0.00027945,3]
[367110041,1750662671402,-1305.95,0.00027945,3]
[367110042,1750662671411,-490.0,0.00027945,3]
[367110043,1750662671421,-825.12,0.00027945,3]
[367110044,1750662671431,-490.0,0.00027945,3]
[367110045,1750662671441,-490.0,0.00027945,3]
[367110046,1750662671451,-553.17,0.00027945,3]
[367110047,1750662671461,-490.0,0.00027945,3]
[367110048,1750662671470,-1184.6,0.00027945,3]
[367110049,1750662671480,-490.0,0.00027945,3]
[367110050,1750662671489,-2077.31,0.00027945,3]
[367110051,1750662671499,-1017.63,0.00027945,3]
[367110052,1750662671511,-903.1,0.00027945,3]
[367110053,1750662671521,-840.82,0.00027945,3]
[367110054,1750662671530,-1228.76,0.00027945,3]
[367110055,1750662671539,-972.48,0.00027945,3]
[367110056,1750662671548,-218.99347984,0.00027945,3]
[367110057,1750662671559,-522.41223128,0.00027945,2]
[367110058,1750662671570,-490.0,0.00027945,3]
[367110059,1750662671579,-490.0,0.00027945,3]
[367110060,1750662671589,-698.82,0.00027945,3]
[367110061,1750662671599,-1683.09,0.00027945,3]
[367110062,1750662671608,-614.18,0.00027945,3]
[367110063,1750662671617,-1068.5,0.00027945,3]
[367110064,1750662671627,-492.43,0.00027945,3]
[367110065,1750662671636,-899.45,0.00027945,3]
[367110066,1750662671645,-490.0,0.00027945,3]
[367110067,1750662671654,-1018.31,0.00027945,3]
[367110068,1750662671664,-490.0,0.00027945,3]
[367110069,1750662671673,-554.78922441,0.00027945,3]
[367110070,1750662671682,-1034.85,0.00027945,3]
[367110071,1750662671691,-490.0,0.00027945,3]
[367110072,1750662671701,-1636.32,0.00027945,3]
[367110073,1750662671710,-490.0,0.00027945,3]
[367110074,1750662671720,-636.43,0.00027945,3]
[367110075,1750662671730,-514.73,0.00027945,3]
[367110076,1750662671740,-490.0,0.00027945,3]
[367110077,1750662671751,-490.0,0.00027945,3]
[367110078,1750662671759,-490.0,0.00027945,3]
[367110079,1750662671769,-1597.54,0.00027945,3]
[367110080,1750662671778,-490.0,0.00027945,3]
[367110081,1750662671787,-490.0,0.00027945,3]
[367110082,1750662671797,-490.0,0.00027945,3]
[367110083,1750662671807,-878.08,0.00027945,3]
[367110084,1750662671817,-490.0,0.00027945,3]
[367110085,1750662671828,-523.01189119,0.00027945,3]
[367110086,1750662671837,-490.0,0.00027945,3]
[367110087,1750662671847,-490.0,0.00027945,3]
[367110088,1750662671856,-933.44,0.00027945,3]
[367110089,1750662671866,-490.0,0.00027945,3]
[367110090,1750662671875,-980.14,0.00027945,3]
[367110091,1750662671884,-1351.29,0.00027945,3]
[367110092,1750662671894,-461.60974741,0.00027945,3]
[367110093,1750662671903,-490.0,0.00027945,3]
[367110094,1750662671913,-490.0,0.00027945,3]
[367110095,1750662671923,-973.74,0.00027945,3]
[367110096,1750662671933,-1021.72,0.00027945,3]
[367110097,1750662671943,-490.0,0.00027945,3]
[367110098,1750662671954,-490.0,0.00027945,3]
[367110099,1750662671964,-2515.92,0.00027945,3]
[367110100,1750662671974,-563.49,0.00027945,3]
[367110101,1750662671983,-718.42,0.00027945,3]
[367110102,1750662671992,-490.0,0.00027945,3]
[367110103,1750662672002,-763.59,0.00027945,3]
[367110104,1750662672011,-490.0,0.00027945,3]
[367110105,1750662672020,-490.0,0.00027945,3]
[367110106,1750662672030,-490.0,0.00027945,3]
[367110107,1750662672040,-1171.08,0.00027945,3]
[367110108,1750662672049,-490.0,0.00027945,3]
[367110109,1750662672059,-490.0,0.00027945,3]
[367110110,1750662672070,-806.32,0.00027945,3]
[367110111,1750662672079,-1313.3,0.00027945,3]
[367110112,1750662672089,-490.0,0.00027945,3]
[367110113,1750662672099,-490.0,0.00027945,3]
[367110114,1750662672108,-490.0,0.00027945,3]
[367110115,1750662672118,-288.81051729,0.00027945,3]
[367110116,1750662672127,-1866.63,0.00027945,3]
[367110117,1750662672136,-783.39,0.00027945,3]
[367110118,1750662672145,-1408.5,0.00027945,3]
[367110119,1750662672156,-760.51,0.00027945,3]
[367110120,1750662672165,-640.07,0.00027945,3]
[367110121,1750662672174,-1615.12,0.00027945,3]
[367110122,1750662672184,-490.0,0.00027945,3]
[367110123,1750662672193,-1113.91,0.00027945,3]
[367110124,1750662672202,-235.87853202,0.00027945,3]
[367110125,1750662672212,-1204.57,0.00027945,3]
[367110126,1750662672222,-231.6107567,0.00027945,3]
[367110127,1750662672231,-490.0,0.00027945,3]
[367110128,1750662672241,-490.0,0.00027945,3]
[367110129,1750662672250,-852.31,0.00027945,3]
[367110130,1750662672260,-1617.57,0.00027945,3]
[367110131,1750662672270,-193.13315156,0.00027945,3]
[367110132,1750662672280,-1344.16,0.00027945,3]
[367110133,1750662672289,-1189.28,0.00027945,3]
[367110134,1750662672298,-490.0,0.00027945,3]